Workbook

Sheet 病理科技师
A1: 序号 | B1: 姓名 | C1: 身份证号 | D1: 岗位名称 | E1: 岗位代码 | F1: 抽签号 | G1: 面试成绩 | H1: 是否进入资格复审
A2: 20 | B2: 邓庞娟 | C2: 522324****6562X | D2: 病理科技师 | E2: B01 | F2: =VLOOKUP(B2,[1]sheet1!$E$1:$F$65536,2,FALSE) -> 39 | G2: =VLOOKUP(F2,[2]带公式模板!$A:$K,11,FALSE) -> 95.67 | H2: 是
A3: 136 | B3: 赵飞艳 | C3: 522424****60624 | D3: 病理科技师 | E3: B01 | F3: =VLOOKUP(B3,[1]sheet1!$E$1:$F$65536,2,FALSE) -> 112 | G3: =VLOOKUP(F3,[2]带公式模板!$A:$K,11,FALSE) -> 92.00 | H3: 是
A4: 7 | B4: 徐芳婷 | C4: 522425****93026 | D4: 病理科技师 | E4: B01 | F4: =VLOOKUP(B4,[1]sheet1!$E$1:$F$65536,2,FALSE) -> 109 | G4: =VLOOKUP(F4,[2]带公式模板!$A:$K,11,FALSE) -> 84.33
A5: 1 | B5: 李韬 | C5: 522423****00835 | D5: 病理科技师 | E5: B01 | F5: =VLOOKUP(B5,[1]sheet1!$E$1:$F$65536,2,FALSE) -> 61 | G5: =VLOOKUP(F5,[2]带公式模板!$A:$K,11,FALSE) -> 78.67
A6: 24 | B6: 姚元芳 | C6: 522626****50066 | D6: 病理科技师 | E6: B01 | F6: =VLOOKUP(B6,[1]sheet1!$E$1:$F$65536,2,FALSE) -> 6 | G6: =VLOOKUP(F6,[2]带公式模板!$A:$K,11,FALSE) -> 76.33
A7: 102 | B7: 黄颍埼 | C7: 520103****73625 | D7: 病理科技师 | E7: B01 | F7: =VLOOKUP(B7,[1]sheet1!$E$1:$F$65536,2,FALSE) -> 36 | G7: =VLOOKUP(F7,[2]带公式模板!$A:$K,11,FALSE) -> 76.00
A8: 47 | B8: 程羽 | C8: 522526****41227 | D8: 病理科技师 | E8: B01 | F8: =VLOOKUP(B8,[1]sheet1!$E$1:$F$65536,2,FALSE) -> 133 | G8: =VLOOKUP(F8,[2]带公式模板!$A:$K,11,FALSE) -> 74.67
A9: 55 | B9: 朱家洪 | C9: 522121****40212 | D9: 病理科技师 | E9: B01 | F9: =VLOOKUP(B9,[1]sheet1!$E$1:$F$65536,2,FALSE) -> 110 | G9: =VLOOKUP(F9,[2]带公式模板!$A:$K,11,FALSE) -> 74.67
A10: 62 | B10: 班旭 | C10: 522422****74237 | D10: 病理科技师 | E10: B01 | F10: =VLOOKUP(B10,[1]sheet1!$E$1:$F$65536,2,FALSE) -> 28 | G10: =VLOOKUP(F10,[2]带公式模板!$A:$K,11,FALSE) -> 74.67
A11: 34 | B11: 石彩群 | C11: 522229****23420 | D11: 病理科技师 | E11: B01 | F11: =VLOOKUP(B11,[1]sheet1!$E$1:$F$65536,2,FALSE) -> 63 | G11: =VLOOKUP(F11,[2]带公式模板!$A:$K,11,FALSE) -> 72.33
A12: 138 | B12: 王权瑞 | C12: 522636****80813 | D12: 病理科技师 | E12: B01 | F12: =VLOOKUP(B12,[1]sheet1!$E$1:$F$65536,2,FALSE) -> 20 | G12: =VLOOKUP(F12,[2]带公式模板!$A:$K,11,FALSE) -> 71.67
A13: 81 | B13: 何昌红 | C13: 522129****52020 | D13: 病理科技师 | E13: B01 | F13: =VLOOKUP(B13,[1]sheet1!$E$1:$F$65536,2,FALSE) -> 31 | G13: =VLOOKUP(F13,[2]带公式模板!$A:$K,11,FALSE) -> 69.33
A14: 88 | B14: 周瑶 | C14: 522428****83260 | D14: 病理科技师 | E14: B01 | F14: =VLOOKUP(B14,[1]sheet1!$E$1:$F$65536,2,FALSE) -> 118 | G14: =VLOOKUP(F14,[2]带公式模板!$A:$K,11,FALSE) -> 68.00
A15: 133 | B15: 司卜齐 | C15: 520202****87468 | D15: 病理科技师 | E15: B01 | F15: =VLOOKUP(B15,[1]sheet1!$E$1:$F$65536,2,FALSE) -> 123 | G15: =VLOOKUP(F15,[2]带公式模板!$A:$K,11,FALSE) -> 68.00
A16: 126 | B16: 欧泗成 | C16: 522630****50154 | D16: 病理科技师 | E16: B01 | F16: =VLOOKUP(B16,[1]sheet1!$E$1:$F$65536,2,FALSE) -> 96 | G16: =VLOOKUP(F16,[2]带公式模板!$A:$K,11,FALSE) -> 66.67
A17: 122 | B17: 何满 | C17: 522422****70167 | D17: 病理科技师 | E17: B01 | F17: =VLOOKUP(B17,[1]sheet1!$E$1:$F$65536,2,FALSE) -> 14 | G17: =VLOOKUP(F17,[2]带公式模板!$A:$K,11,FALSE) -> 66.33
A18: 13 | B18: 王德栋 | C18: 522425****68115 | D18: 病理科技师 | E18: B01 | F18: =VLOOKUP(B18,[1]sheet1!$E$1:$F$65536,2,FALSE) -> 102 | G18: =VLOOKUP(F18,[2]带公式模板!$A:$K,11,FALSE) -> 65.67
A19: 59 | B19: 李光亮 | C19: 522229****61210 | D19: 病理科技师 | E19: B01 | F19: =VLOOKUP(B19,[1]sheet1!$E$1:$F$65536,2,FALSE) -> 106 | G19: =VLOOKUP(F19,[2]带公式模板!$A:$K,11,FALSE) -> 65.67
A20: 95 | B20: 肖华敏 | C20: 522124****11644 | D20: 病理科技师 | E20: B01 | F20: =VLOOKUP(B20,[1]sheet1!$E$1:$F$65536,2,FALSE) -> 60 | G20: =VLOOKUP(F20,[2]带公式模板!$A:$K,11,FALSE) -> 65.67
A21: 128 | B21: 陆星霖 | C21: 522127****33035 | D21: 病理科技师 | E21: B01 | F21: =VLOOKUP(B21,[1]sheet1!$E$1:$F$65536,2,FALSE) -> 129 | G21: =VLOOKUP(F21,[2]带公式模板!$A:$K,11,FALSE) -> 64.67
A22: 15 | B22: 曾琳 | C22: 522129****33526 | D22: 病理科技师 | E22: B01 | F22: =VLOOKUP(B22,[1]sheet1!$E$1:$F$65536,2,FALSE) -> 90 | G22: =VLOOKUP(F22,[2]带公式模板!$A:$K,11,FALSE) -> 63.00
A23: 30 | B23: 梁煜彬 | C23: 522221****31212 | D23: 病理科技师 | E23: B01 | F23: =VLOOKUP(B23,[1]sheet1!$E$1:$F$65536,2,FALSE) -> 41 | G23: =VLOOKUP(F23,[2]带公式模板!$A:$K,11,FALSE) -> 63.00
A24: 31 | B24: 刘璇 | C24: 522427****37286 | D24: 病理科技师 | E24: B01 | F24: =VLOOKUP(B24,[1]sheet1!$E$1:$F$65536,2,FALSE) -> 114 | G24: =VLOOKUP(F24,[2]带公式模板!$A:$K,11,FALSE) -> 63.00
A25: 39 | B25: 叶诺 | C25: 520202****84022 | D25: 病理科技师 | E25: B01 | F25: =VLOOKUP(B25,[1]sheet1!$E$1:$F$65536,2,FALSE) -> 59 | G25: =VLOOKUP(F25,[2]带公式模板!$A:$K,11,FALSE) -> 63.00
A26: 93 | B26: 方雪 | C26: 522121****71860 | D26: 病理科技师 | E26: B01 | F26: =VLOOKUP(B26,[1]sheet1!$E$1:$F$65536,2,FALSE) -> 115 | G26: =VLOOKUP(F26,[2]带公式模板!$A:$K,11,FALSE) -> 63.00
A27: 113 | B27: 赵婧涵 | C27: 520111****31545 | D27: 病理科技师 | E27: B01 | F27: =VLOOKUP(B27,[1]sheet1!$E$1:$F$65536,2,FALSE) -> 119 | G27: =VLOOKUP(F27,[2]带公式模板!$A:$K,11,FALSE) -> 63.00
A28: 78 | B28: 王丹 | C28: 522426****85045 | D28: 病理科技师 | E28: B01 | F28: =VLOOKUP(B28,[1]sheet1!$E$1:$F$65536,2,FALSE) -> 15 | G28: =VLOOKUP(F28,[2]带公式模板!$A:$K,11,FALSE) -> 62.67
A29: 84 | B29: 王景 | C29: 520202****54043 | D29: 病理科技师 | E29: B01 | F29: =VLOOKUP(B29,[1]sheet1!$E$1:$F$65536,2,FALSE) -> 100 | G29: =VLOOKUP(F29,[2]带公式模板!$A:$K,11,FALSE) -> 61.67
A30: 85 | B30: 韦票 | C30: 522732****43029 | D30: 病理科技师 | E30: B01 | F30: =VLOOKUP(B30,[1]sheet1!$E$1:$F$65536,2,FALSE) -> 78 | G30: =VLOOKUP(F30,[2]带公式模板!$A:$K,11,FALSE) -> 60.33
A31: 53 | B31: 金晓燕 | C31: 520112****81122 | D31: 病理科技师 | E31: B01 | F31: =VLOOKUP(B31,[1]sheet1!$E$1:$F$65536,2,FALSE) -> 66 | G31: =VLOOKUP(F31,[2]带公式模板!$A:$K,11,FALSE) -> 60.00
A32: 21 | B32: 何竹文 | C32: 522401****30060 | D32: 病理科技师 | E32: B01 | F32: =VLOOKUP(B32,[1]sheet1!$E$1:$F$65536,2,FALSE) -> 131 | G32: =VLOOKUP(F32,[2]带公式模板!$A:$K,11,FALSE) -> 58.00
A33: 46 | B33: 毛小亮 | C33: 522228****43611 | D33: 病理科技师 | E33: B01 | F33: =VLOOKUP(B33,[1]sheet1!$E$1:$F$65536,2,FALSE) -> 132 | G33: =VLOOKUP(F33,[2]带公式模板!$A:$K,11,FALSE) -> 57.67
A34: 127 | B34: 张海萍 | C34: 522326****11643 | D34: 病理科技师 | E34: B01 | F34: =VLOOKUP(B34,[1]sheet1!$E$1:$F$65536,2,FALSE) -> 55 | G34: =VLOOKUP(F34,[2]带公式模板!$A:$K,11,FALSE) -> 57.67
A35: 22 | B35: 朱双龙 | C35: 520202****88273 | D35: 病理科技师 | E35: B01 | F35: =VLOOKUP(B35,[1]sheet1!$E$1:$F$65536,2,FALSE) -> 22 | G35: =VLOOKUP(F35,[2]带公式模板!$A:$K,11,FALSE) -> 57.00
A36: 109 | B36: 刘丽莎 | C36: 522230****20769 | D36: 病理科技师 | E36: B01 | F36: =VLOOKUP(B36,[1]sheet1!$E$1:$F$65536,2,FALSE) -> 135 | G36: =VLOOKUP(F36,[2]带公式模板!$A:$K,11,FALSE) -> 56.67
A37: 129 | B37: 余冬艳 | C37: 522427****21449 | D37: 病理科技师 | E37: B01 | F37: =VLOOKUP(B37,[1]sheet1!$E$1:$F$65536,2,FALSE) -> 10 | G37: =VLOOKUP(F37,[2]带公式模板!$A:$K,11,FALSE) -> 56.67
A38: 65 | B38: 张旺 | C38: 522401****63255 | D38: 病理科技师 | E38: B01 | F38: =VLOOKUP(B38,[1]sheet1!$E$1:$F$65536,2,FALSE) -> 11 | G38: =VLOOKUP(F38,[2]带公式模板!$A:$K,11,FALSE) -> 56.00
A39: 80 | B39: 郑世银 | C39: 522422****52026 | D39: 病理科技师 | E39: B01 | F39: =VLOOKUP(B39,[1]sheet1!$E$1:$F$65536,2,FALSE) -> 93 | G39: =VLOOKUP(F39,[2]带公式模板!$A:$K,11,FALSE) -> 56.00
A40: 111 | B40: 马骥 | C40: 522422****52618 | D40: 病理科技师 | E40: B01 | F40: =VLOOKUP(B40,[1]sheet1!$E$1:$F$65536,2,FALSE) -> 49 | G40: =VLOOKUP(F40,[2]带公式模板!$A:$K,11,FALSE) -> 55.00
A41: 104 | B41: 刘一犇 | C41: 520103****34411 | D41: 病理科技师 | E41: B01 | F41: =VLOOKUP(B41,[1]sheet1!$E$1:$F$65536,2,FALSE) -> 5 | G41: =VLOOKUP(F41,[2]带公式模板!$A:$K,11,FALSE) -> 54.67
A42: 19 | B42: 龚颖 | C42: 522401****32060 | D42: 病理科技师 | E42: B01 | F42: =VLOOKUP(B42,[1]sheet1!$E$1:$F$65536,2,FALSE) -> 75 | G42: =VLOOKUP(F42,[2]带公式模板!$A:$K,11,FALSE) -> 53.00
A43: 51 | B43: 刘燕 | C43: 511623****6524X | D43: 病理科技师 | E43: B01 | F43: =VLOOKUP(B43,[1]sheet1!$E$1:$F$65536,2,FALSE) -> 52 | G43: =VLOOKUP(F43,[2]带公式模板!$A:$K,11,FALSE) -> 52.67
A44: 117 | B44: 何钰洁 | C44: 520181****30820 | D44: 病理科技师 | E44: B01 | F44: =VLOOKUP(B44,[1]sheet1!$E$1:$F$65536,2,FALSE) -> 113 | G44: =VLOOKUP(F44,[2]带公式模板!$A:$K,11,FALSE) -> 52.00
A45: 69 | B45: 潘锦鸿 | C45: 522622****95518 | D45: 病理科技师 | E45: B01 | F45: =VLOOKUP(B45,[1]sheet1!$E$1:$F$65536,2,FALSE) -> 111 | G45: =VLOOKUP(F45,[2]带公式模板!$A:$K,11,FALSE) -> 51.33
A46: 87 | B46: 李文飞 | C46: 522425****79024 | D46: 病理科技师 | E46: B01 | F46: =VLOOKUP(B46,[1]sheet1!$E$1:$F$65536,2,FALSE) -> 4 | G46: =VLOOKUP(F46,[2]带公式模板!$A:$K,11,FALSE) -> 51.00
A47: 26 | B47: 潘远黎 | C47: 522732****91411 | D47: 病理科技师 | E47: B01 | F47: =VLOOKUP(B47,[1]sheet1!$E$1:$F$65536,2,FALSE) -> 67 | G47: =VLOOKUP(F47,[2]带公式模板!$A:$K,11,FALSE) -> 50.67
A48: 112 | B48: 周驰承 | C48: 520102****60815 | D48: 病理科技师 | E48: B01 | F48: =VLOOKUP(B48,[1]sheet1!$E$1:$F$65536,2,FALSE) -> 88 | G48: =VLOOKUP(F48,[2]带公式模板!$A:$K,11,FALSE) -> 49.33
A49: 27 | B49: 陈天福 | C49: 522425****64514 | D49: 病理科技师 | E49: B01 | F49: =VLOOKUP(B49,[1]sheet1!$E$1:$F$65536,2,FALSE) -> 50 | G49: =VLOOKUP(F49,[2]带公式模板!$A:$K,11,FALSE) -> 47.67
A50: 79 | B50: 杨妍 | C50: 520121****33427 | D50: 病理科技师 | E50: B01 | F50: =VLOOKUP(B50,[1]sheet1!$E$1:$F$65536,2,FALSE) -> 70 | G50: =VLOOKUP(F50,[2]带公式模板!$A:$K,11,FALSE) -> 46.33
A51: 33 | B51: 夏飘 | C51: 522729****2362X | D51: 病理科技师 | E51: B01 | F51: =VLOOKUP(B51,[1]sheet1!$E$1:$F$65536,2,FALSE) -> 38 | G51: =VLOOKUP(F51,[2]带公式模板!$A:$K,11,FALSE) -> 46.00
A52: 121 | B52: 田琤 | C52: 522226****60066 | D52: 病理科技师 | E52: B01 | F52: =VLOOKUP(B52,[1]sheet1!$E$1:$F$65536,2,FALSE) -> 74 | G52: =VLOOKUP(F52,[2]带公式模板!$A:$K,11,FALSE) -> 41.33
A53: 2 | B53: 侯娟 | C53: 522422****8588X | D53: 病理科技师 | E53: B01 | F53: =VLOOKUP(B53,[1]sheet1!$E$1:$F$65536,2,FALSE) -> 121 | G53: 缺考
A54: 3 | B54: 马山 | C54: 522124****84435 | D54: 病理科技师 | E54: B01 | F54: =VLOOKUP(B54,[1]sheet1!$E$1:$F$65536,2,FALSE) -> 9 | G54: 缺考
A55: 4 | B55: 梁珊 | C55: 522224****30821 | D55: 病理科技师 | E55: B01 | F55: =VLOOKUP(B55,[1]sheet1!$E$1:$F$65536,2,FALSE) -> 53 | G55: 缺考
A56: 5 | B56: 张应芝 | C56: 522630****2014X | D56: 病理科技师 | E56: B01 | F56: =VLOOKUP(B56,[1]sheet1!$E$1:$F$65536,2,FALSE) -> 3 | G56: 缺考
A57: 6 | B57: 戎琴芬 | C57: 522427****57825 | D57: 病理科技师 | E57: B01 | F57: =VLOOKUP(B57,[1]sheet1!$E$1:$F$65536,2,FALSE) -> 73 | G57: 缺考
A58: 8 | B58: 梅雨佳 | C58: 522422****31447 | D58: 病理科技师 | E58: B01 | F58: =VLOOKUP(B58,[1]sheet1!$E$1:$F$65536,2,FALSE) -> 107 | G58: 缺考
A59: 9 | B59: 金万昌 | C59: 522622****1101X | D59: 病理科技师 | E59: B01 | F59: =VLOOKUP(B59,[1]sheet1!$E$1:$F$65536,2,FALSE) -> 1 | G59: 缺考
A60: 10 | B60: 秦霞 | C60: 522224****90867 | D60: 病理科技师 | E60: B01 | F60: =VLOOKUP(B60,[1]sheet1!$E$1:$F$65536,2,FALSE) -> 12 | G60: 缺考
A61: 11 | B61: 刘诗益 | C61: 520202****3632X | D61: 病理科技师 | E61: B01 | F61: =VLOOKUP(B61,[1]sheet1!$E$1:$F$65536,2,FALSE) -> 35 | G61: 缺考
A62: 12 | B62: 梁靖婵 | C62: 522124****4322X | D62: 病理科技师 | E62: B01 | F62: =VLOOKUP(B62,[1]sheet1!$E$1:$F$65536,2,FALSE) -> 2 | G62: 缺考
A63: 14 | B63: 章宪 | C63: 522426****5121X | D63: 病理科技师 | E63: B01 | F63: =VLOOKUP(B63,[1]sheet1!$E$1:$F$65536,2,FALSE) -> 95 | G63: 缺考
A64: 16 | B64: 田行行 | C64: 522101****94032 | D64: 病理科技师 | E64: B01 | F64: =VLOOKUP(B64,[1]sheet1!$E$1:$F$65536,2,FALSE) -> 85 | G64: 缺考
A65: 17 | B65: 徐多仪 | C65: 522127****66024 | D65: 病理科技师 | E65: B01 | F65: =VLOOKUP(B65,[1]sheet1!$E$1:$F$65536,2,FALSE) -> 127 | G65: 缺考
A66: 18 | B66: 梁鹏 | C66: 522326****9241X | D66: 病理科技师 | E66: B01 | F66: =VLOOKUP(B66,[1]sheet1!$E$1:$F$65536,2,FALSE) -> 82 | G66: 缺考
A67: 23 | B67: 龙熙 | C67: 522426****5012X | D67: 病理科技师 | E67: B01 | F67: =VLOOKUP(B67,[1]sheet1!$E$1:$F$65536,2,FALSE) -> 57 | G67: 缺考
A68: 25 | B68: 毛冕 | C68: 520222****40088 | D68: 病理科技师 | E68: B01 | F68: =VLOOKUP(B68,[1]sheet1!$E$1:$F$65536,2,FALSE) -> 51 | G68: 缺考
A69: 28 | B69: 毛丹丹 | C69: 522225****01141 | D69: 病理科技师 | E69: B01 | F69: =VLOOKUP(B69,[1]sheet1!$E$1:$F$65536,2,FALSE) -> 45 | G69: 缺考
A70: 29 | B70: 蓝钰淞 | C70: 522725****1685X | D70: 病理科技师 | E70: B01 | F70: =VLOOKUP(B70,[1]sheet1!$E$1:$F$65536,2,FALSE) -> 81 | G70: 缺考
A71: 32 | B71: 费红丽 | C71: 522129****33042 | D71: 病理科技师 | E71: B01 | F71: =VLOOKUP(B71,[1]sheet1!$E$1:$F$65536,2,FALSE) -> 13 | G71: 缺考
A72: 35 | B72: 安思洁 | C72: 522427****7732X | D72: 病理科技师 | E72: B01 | F72: =VLOOKUP(B72,[1]sheet1!$E$1:$F$65536,2,FALSE) -> 99 | G72: 缺考
A73: 36 | B73: 罗茂红 | C73: 522401****82512 | D73: 病理科技师 | E73: B01 | F73: =VLOOKUP(B73,[1]sheet1!$E$1:$F$65536,2,FALSE) -> 65 | G73: 缺考
A74: 37 | B74: 魏安雷 | C74: 522124****60910 | D74: 病理科技师 | E74: B01 | F74: =VLOOKUP(B74,[1]sheet1!$E$1:$F$65536,2,FALSE) -> 97 | G74: 缺考
A75: 38 | B75: 林丽玲 | C75: 520181****01749 | D75: 病理科技师 | E75: B01 | F75: =VLOOKUP(B75,[1]sheet1!$E$1:$F$65536,2,FALSE) -> 125 | G75: 缺考
A76: 40 | B76: 刘佳英 | C76: 522428****70422 | D76: 病理科技师 | E76: B01 | F76: =VLOOKUP(B76,[1]sheet1!$E$1:$F$65536,2,FALSE) -> 23 | G76: 缺考
A77: 41 | B77: 王啟霞 | C77: 522423****22329 | D77: 病理科技师 | E77: B01 | F77: =VLOOKUP(B77,[1]sheet1!$E$1:$F$65536,2,FALSE) -> 34 | G77: 缺考
A78: 42 | B78: 汪家强 | C78: 522225****07239 | D78: 病理科技师 | E78: B01 | F78: =VLOOKUP(B78,[1]sheet1!$E$1:$F$65536,2,FALSE) -> 30 | G78: 缺考
A79: 43 | B79: 凤娇娇 | C79: 522121****47689 | D79: 病理科技师 | E79: B01 | F79: =VLOOKUP(B79,[1]sheet1!$E$1:$F$65536,2,FALSE) -> 92 | G79: 缺考
A80: 44 | B80: 何林波 | C80: 522225****02856 | D80: 病理科技师 | E80: B01 | F80: =VLOOKUP(B80,[1]sheet1!$E$1:$F$65536,2,FALSE) -> 64 | G80: 缺考
A81: 45 | B81: 何芽 | C81: 520202****29320 | D81: 病理科技师 | E81: B01 | F81: =VLOOKUP(B81,[1]sheet1!$E$1:$F$65536,2,FALSE) -> 91 | G81: 缺考
A82: 48 | B82: 龙佳宜 | C82: 511324****30481 | D82: 病理科技师 | E82: B01 | F82: =VLOOKUP(B82,[1]sheet1!$E$1:$F$65536,2,FALSE) -> 25 | G82: 缺考
A83: 49 | B83: 刘煦 | C83: 522122****41629 | D83: 病理科技师 | E83: B01 | F83: =VLOOKUP(B83,[1]sheet1!$E$1:$F$65536,2,FALSE) -> 117 | G83: 缺考
A84: 50 | B84: 韦琴 | C84: 522731****03647 | D84: 病理科技师 | E84: B01 | F84: =VLOOKUP(B84,[1]sheet1!$E$1:$F$65536,2,FALSE) -> 105 | G84: 缺考
A85: 52 | B85: 朱阳 | C85: 522626****73630 | D85: 病理科技师 | E85: B01 | F85: =VLOOKUP(B85,[1]sheet1!$E$1:$F$65536,2,FALSE) -> 120 | G85: 缺考
A86: 54 | B86: 徐东旭 | C86: 522227****41659 | D86: 病理科技师 | E86: B01 | F86: =VLOOKUP(B86,[1]sheet1!$E$1:$F$65536,2,FALSE) -> 98 | G86: 缺考
A87: 56 | B87: 桂杨进 | C87: 522526****61010 | D87: 病理科技师 | E87: B01 | F87: =VLOOKUP(B87,[1]sheet1!$E$1:$F$65536,2,FALSE) -> 16 | G87: 缺考
A88: 57 | B88: 王诗 | C88: 522527****51326 | D88: 病理科技师 | E88: B01 | F88: =VLOOKUP(B88,[1]sheet1!$E$1:$F$65536,2,FALSE) -> 58 | G88: 缺考
A89: 58 | B89: 张媛媛 | C89: 522321****20027 | D89: 病理科技师 | E89: B01 | F89: =VLOOKUP(B89,[1]sheet1!$E$1:$F$65536,2,FALSE) -> 137 | G89: 缺考
A90: 60 | B90: 胡启 | C90: 522426****22417 | D90: 病理科技师 | E90: B01 | F90: =VLOOKUP(B90,[1]sheet1!$E$1:$F$65536,2,FALSE) -> 130 | G90: 缺考
A91: 61 | B91: 高航琴 | C91: 520121****03846 | D91: 病理科技师 | E91: B01 | F91: =VLOOKUP(B91,[1]sheet1!$E$1:$F$65536,2,FALSE) -> 124 | G91: 缺考
A92: 63 | B92: 毕曼婕 | C92: 520202****37725 | D92: 病理科技师 | E92: B01 | F92: =VLOOKUP(B92,[1]sheet1!$E$1:$F$65536,2,FALSE) -> 136 | G92: 缺考
A93: 64 | B93: 刘玲婕 | C93: 522128****22520 | D93: 病理科技师 | E93: B01 | F93: =VLOOKUP(B93,[1]sheet1!$E$1:$F$65536,2,FALSE) -> 101 | G93: 缺考
A94: 66 | B94: 李娟 | C94: 522422****67068 | D94: 病理科技师 | E94: B01 | F94: =VLOOKUP(B94,[1]sheet1!$E$1:$F$65536,2,FALSE) -> 19 | G94: 缺考
A95: 67 | B95: 陈玉玲 | C95: 522127****96523 | D95: 病理科技师 | E95: B01 | F95: =VLOOKUP(B95,[1]sheet1!$E$1:$F$65536,2,FALSE) -> 18 | G95: 缺考
A96: 68 | B96: 彭依玲 | C96: 522121****76424 | D96: 病理科技师 | E96: B01 | F96: =VLOOKUP(B96,[1]sheet1!$E$1:$F$65536,2,FALSE) -> 128 | G96: 缺考
A97: 70 | B97: 易丽单 | C97: 530381****53924 | D97: 病理科技师 | E97: B01 | F97: =VLOOKUP(B97,[1]sheet1!$E$1:$F$65536,2,FALSE) -> 84 | G97: 缺考
A98: 71 | B98: 王封棉 | C98: 522326****52220 | D98: 病理科技师 | E98: B01 | F98: =VLOOKUP(B98,[1]sheet1!$E$1:$F$65536,2,FALSE) -> 17 | G98: 缺考
A99: 72 | B99: 聂杰 | C99: 522401****89847 | D99: 病理科技师 | E99: B01 | F99: =VLOOKUP(B99,[1]sheet1!$E$1:$F$65536,2,FALSE) -> 79 | G99: 缺考
A100: 73 | B100: 姜桃银 | C100: 522426****35679 | D100: 病理科技师 | E100: B01 | F100: =VLOOKUP(B100,[1]sheet1!$E$1:$F$65536,2,FALSE) -> 80 | G100: 缺考
A101: 74 | B101: 谌红玉 | C101: 522225****12861 | D101: 病理科技师 | E101: B01 | F101: =VLOOKUP(B101,[1]sheet1!$E$1:$F$65536,2,FALSE) -> 7 | G101: 缺考
A102: 75 | B102: 马叶叶 | C102: 522322****11329 | D102: 病理科技师 | E102: B01 | F102: =VLOOKUP(B102,[1]sheet1!$E$1:$F$65536,2,FALSE) -> 24 | G102: 缺考
A103: 76 | B103: 张慧玲 | C103: 520203****80864 | D103: 病理科技师 | E103: B01 | F103: =VLOOKUP(B103,[1]sheet1!$E$1:$F$65536,2,FALSE) -> 138 | G103: 缺考
A104: 77 | B104: 钱科静 | C104: 520121****7102X | D104: 病理科技师 | E104: B01 | F104: =VLOOKUP(B104,[1]sheet1!$E$1:$F$65536,2,FALSE) -> 122 | G104: 缺考
A105: 82 | B105: 武升欢 | C105: 522425****63348 | D105: 病理科技师 | E105: B01 | F105: =VLOOKUP(B105,[1]sheet1!$E$1:$F$65536,2,FALSE) -> 27 | G105: 缺考
A106: 83 | B106: 杜俊强 | C106: 513022****73736 | D106: 病理科技师 | E106: B01 | F106: =VLOOKUP(B106,[1]sheet1!$E$1:$F$65536,2,FALSE) -> 44 | G106: 缺考
A107: 86 | B107: 刘孔燕 | C107: 520112****80325 | D107: 病理科技师 | E107: B01 | F107: =VLOOKUP(B107,[1]sheet1!$E$1:$F$65536,2,FALSE) -> 83 | G107: 缺考
A108: 89 | B108: 王谦 | C108: 522428****54023 | D108: 病理科技师 | E108: B01 | F108: =VLOOKUP(B108,[1]sheet1!$E$1:$F$65536,2,FALSE) -> 134 | G108: 缺考
A109: 90 | B109: 王军 | C109: 522425****83971 | D109: 病理科技师 | E109: B01 | F109: =VLOOKUP(B109,[1]sheet1!$E$1:$F$65536,2,FALSE) -> 68 | G109: 缺考
A110: 91 | B110: 赵夕月 | C110: 522729****51221 | D110: 病理科技师 | E110: B01 | F110: =VLOOKUP(B110,[1]sheet1!$E$1:$F$65536,2,FALSE) -> 76 | G110: 缺考
A111: 92 | B111: 王玥 | C111: 522401****49022 | D111: 病理科技师 | E111: B01 | F111: =VLOOKUP(B111,[1]sheet1!$E$1:$F$65536,2,FALSE) -> 32 | G111: 缺考
A112: 94 | B112: 郑历 | C112: 522124****2364X | D112: 病理科技师 | E112: B01 | F112: =VLOOKUP(B112,[1]sheet1!$E$1:$F$65536,2,FALSE) -> 46 | G112: 缺考
A113: 96 | B113: 龚文贵 | C113: 522227****00412 | D113: 病理科技师 | E113: B01 | F113: =VLOOKUP(B113,[1]sheet1!$E$1:$F$65536,2,FALSE) -> 47 | G113: 缺考
A114: 97 | B114: 王腊梅 | C114: 522423****11226 | D114: 病理科技师 | E114: B01 | F114: =VLOOKUP(B114,[1]sheet1!$E$1:$F$65536,2,FALSE) -> 104 | G114: 缺考
A115: 98 | B115: 袁雄 | C115: 522129****50010 | D115: 病理科技师 | E115: B01 | F115: =VLOOKUP(B115,[1]sheet1!$E$1:$F$65536,2,FALSE) -> 71 | G115: 缺考
A116: 99 | B116: 庞学军 | C116: 522125****2431X | D116: 病理科技师 | E116: B01 | F116: =VLOOKUP(B116,[1]sheet1!$E$1:$F$65536,2,FALSE) -> 37 | G116: 缺考
A117: 100 | B117: 黄琴 | C117: 522423****69740 | D117: 病理科技师 | E117: B01 | F117: =VLOOKUP(B117,[1]sheet1!$E$1:$F$65536,2,FALSE) -> 26 | G117: 缺考
A118: 101 | B118: 刘帅 | C118: 522428****81210 | D118: 病理科技师 | E118: B01 | F118: =VLOOKUP(B118,[1]sheet1!$E$1:$F$65536,2,FALSE) -> 56 | G118: 缺考
A119: 103 | B119: 王江平 | C119: 522401****79054 | D119: 病理科技师 | E119: B01 | F119: =VLOOKUP(B119,[1]sheet1!$E$1:$F$65536,2,FALSE) -> 116 | G119: 缺考
A120: 105 | B120: 罗贤良 | C120: 522229****4181X | D120: 病理科技师 | E120: B01 | F120: =VLOOKUP(B120,[1]sheet1!$E$1:$F$65536,2,FALSE) -> 29 | G120: 缺考
A121: 106 | B121: 谢晓钰 | C121: 522321****84026 | D121: 病理科技师 | E121: B01 | F121: =VLOOKUP(B121,[1]sheet1!$E$1:$F$65536,2,FALSE) -> 69 | G121: 缺考
A122: 107 | B122: 陈涛 | C122: 522422****9407X | D122: 病理科技师 | E122: B01 | F122: =VLOOKUP(B122,[1]sheet1!$E$1:$F$65536,2,FALSE) -> 77 | G122: 缺考
A123: 108 | B123: 褚元霞 | C123: 520202****83025 | D123: 病理科技师 | E123: B01 | F123: =VLOOKUP(B123,[1]sheet1!$E$1:$F$65536,2,FALSE) -> 33 | G123: 缺考
A124: 110 | B124: 闵雪 | C124: 520221****90763 | D124: 病理科技师 | E124: B01 | F124: =VLOOKUP(B124,[1]sheet1!$E$1:$F$65536,2,FALSE) -> 139 | G124: 缺考
A125: 114 | B125: 李静 | C125: 522132****40920 | D125: 病理科技师 | E125: B01 | F125: =VLOOKUP(B125,[1]sheet1!$E$1:$F$65536,2,FALSE) -> 89 | G125: 缺考
A126: 115 | B126: 杨代文 | C126: 522624****11213 | D126: 病理科技师 | E126: B01 | F126: =VLOOKUP(B126,[1]sheet1!$E$1:$F$65536,2,FALSE) -> 103 | G126: 缺考
A127: 116 | B127: 陈华 | C127: 520181****80823 | D127: 病理科技师 | E127: B01 | F127: =VLOOKUP(B127,[1]sheet1!$E$1:$F$65536,2,FALSE) -> 48 | G127: 缺考
A128: 118 | B128: 赵腾 | C128: 522527****20840 | D128: 病理科技师 | E128: B01 | F128: =VLOOKUP(B128,[1]sheet1!$E$1:$F$65536,2,FALSE) -> 62 | G128: 缺考
A129: 119 | B129: 李翠菊 | C129: 522425****72461 | D129: 病理科技师 | E129: B01 | F129: =VLOOKUP(B129,[1]sheet1!$E$1:$F$65536,2,FALSE) -> 94 | G129: 缺考
A130: 120 | B130: 陆义秋 | C130: 522631****5664X | D130: 病理科技师 | E130: B01 | F130: =VLOOKUP(B130,[1]sheet1!$E$1:$F$65536,2,FALSE) -> 54 | G130: 缺考
A131: 123 | B131: 肖怡 | C131: 520122****70025 | D131: 病理科技师 | E131: B01 | F131: =VLOOKUP(B131,[1]sheet1!$E$1:$F$65536,2,FALSE) -> 72 | G131: 缺考
A132: 124 | B132: 曾贵 | C132: 522428****53654 | D132: 病理科技师 | E132: B01 | F132: =VLOOKUP(B132,[1]sheet1!$E$1:$F$65536,2,FALSE) -> 8 | G132: 缺考
A133: 125 | B133: 杨泽超 | C133: 522725****2355X | D133: 病理科技师 | E133: B01 | F133: =VLOOKUP(B133,[1]sheet1!$E$1:$F$65536,2,FALSE) -> 21 | G133: 缺考
A134: 130 | B134: 叶腾筠 | C134: 522124****76019 | D134: 病理科技师 | E134: B01 | F134: =VLOOKUP(B134,[1]sheet1!$E$1:$F$65536,2,FALSE) -> 87 | G134: 缺考
A135: 131 | B135: 朱鑫 | C135: 522425****43931 | D135: 病理科技师 | E135: B01 | F135: =VLOOKUP(B135,[1]sheet1!$E$1:$F$65536,2,FALSE) -> 42 | G135: 缺考
A136: 132 | B136: 吴月 | C136: 522426****15045 | D136: 病理科技师 | E136: B01 | F136: =VLOOKUP(B136,[1]sheet1!$E$1:$F$65536,2,FALSE) -> 43 | G136: 缺考
A137: 134 | B137: 黎志强 | C137: 522426****81238 | D137: 病理科技师 | E137: B01 | F137: =VLOOKUP(B137,[1]sheet1!$E$1:$F$65536,2,FALSE) -> 86 | G137: 缺考
A138: 135 | B138: 尹露 | C138: 522501****12426 | D138: 病理科技师 | E138: B01 | F138: =VLOOKUP(B138,[1]sheet1!$E$1:$F$65536,2,FALSE) -> 108 | G138: 缺考
A139: 137 | B139: 黄晓娟 | C139: 522728****43924 | D139: 病理科技师 | E139: B01 | F139: =VLOOKUP(B139,[1]sheet1!$E$1:$F$65536,2,FALSE) -> 126 | G139: 缺考
A140: 139 | B140: 周明琏 | C140: 522224****21211 | D140: 病理科技师 | E140: B01 | F140: =VLOOKUP(B140,[1]sheet1!$E$1:$F$65536,2,FALSE) -> 40 | G140: 缺考
